[Event "Titled Tuesday Blitz February 15 Early 2022"]
[White "Davtyan, Artur"]
[Black "Bettalli, Francesco"]
[WhiteFideId "13308327"]
[BlackFideId "2816453"]
[WhiteElo "2311"]
[BlackElo "2216"]
[Result "1-0"]
[Round "02"]
[TimeControl "180+1"]
[Date "2022.02.15"]
[WhiteClock "0:02:13"]
[BlackClock "0:02:18"]

1. d4 {[%clk 0:02:56]}  Nf6 {[%clk 0:02:57]} 2. c4 {[%clk 0:02:56]}  c5 {[%clk 0:02:58]} 3. d5 {[%clk 0:02:51]}  b5 {[%clk 0:02:58]} 4. cxb5 {[%clk 0:02:50]}  a6 {[%clk 0:02:58]} 5. bxa6 {[%clk 0:02:50]}  g6 {[%clk 0:02:57]} 6. Nc3 {[%clk 0:02:51]}  Bg7 {[%clk 0:02:57]} 7. e4 {[%clk 0:02:51]}  Qa5 {[%clk 0:02:57]} 8. Bd2 {[%clk 0:02:50]}  O-O {[%clk 0:02:57]} 9. Nf3 {[%clk 0:02:50]}  Bxa6 {[%clk 0:02:57]} 10. Be2 {[%clk 0:02:50]}  Bxe2 {[%clk 0:02:57]} 11. Qxe2 {[%clk 0:02:51]}  Qa6 {[%clk 0:02:57]} 12. a4 {[%clk 0:02:29]}  e6 {[%clk 0:02:57]} 13. dxe6 {[%clk 0:02:27]}  fxe6 {[%clk 0:02:56]} 14. Nb5 {[%clk 0:02:23]}  Nc6 {[%clk 0:02:52]} 15. O-O {[%clk 0:02:21]}  Rfb8 {[%clk 0:02:47]} 16. Bc3 {[%clk 0:02:14]}  d5 {[%clk 0:02:30]} 17. exd5 {[%clk 0:02:14]}  Nxd5 {[%clk 0:02:18]} 18. Qxe6+ {[%clk 0:02:13]} 1-0


[Site "https://www.chess.com"]

[Event "Titled Tuesday Blitz February 15 Early 2022"]
[White "Delorme, Alban"]
[Black "Nguyen Hong Nhung"]
[WhiteFideId "623636"]
[BlackFideId "12412201"]
[WhiteElo "2197"]
[BlackElo "1661"]
[Result "0-1"]
[Round "02"]
[TimeControl "180+1"]
[Date "2022.02.15"]
[WhiteClock "0:00:51"]
[BlackClock "0:01:21"]

1. e4 {[%clk 0:03:00]}  c5 {[%clk 0:03:00]} 2. Nf3 {[%clk 0:03:01]}  e6 {[%clk 0:03:00]} 3. c3 {[%clk 0:03:00]}  Nf6 {[%clk 0:03:00]} 4. e5 {[%clk 0:02:58]}  Nd5 {[%clk 0:03:00]} 5. d4 {[%clk 0:02:59]}  cxd4 {[%clk 0:03:01]} 6. Bc4 {[%clk 0:02:59]}  d6 {[%clk 0:03:00]} 7. Bxd5 {[%clk 0:02:58]}  exd5 {[%clk 0:03:00]} 8. Qxd4 {[%clk 0:02:55]}  Be6 {[%clk 0:02:50]} 9. exd6 {[%clk 0:02:50]}  Nc6 {[%clk 0:02:44]} 10. Qa4 {[%clk 0:02:50]}  Bxd6 {[%clk 0:02:41]} 11. Bf4 {[%clk 0:02:42]}  O-O {[%clk 0:02:35]} 12. Bxd6 {[%clk 0:02:37]}  Qxd6 {[%clk 0:02:36]} 13. O-O {[%clk 0:02:35]}  Rfe8 {[%clk 0:02:35]} 14. Nbd2 {[%clk 0:02:31]}  Bd7 {[%clk 0:02:21]} 15. Qh4 {[%clk 0:01:52]}  Re6 {[%clk 0:02:13]} 16. Nd4 {[%clk 0:01:49]}  Rh6 {[%clk 0:02:11]} 17. Qg3 {[%clk 0:01:45]}  Qf6 {[%clk 0:02:04]} 18. Nxc6 {[%clk 0:01:36]}  Bxc6 {[%clk 0:01:58]} 19. Nf3 {[%clk 0:01:35]}  Rg6 {[%clk 0:01:48]} 20. Qh3 {[%clk 0:01:28]}  d4 {[%clk 0:01:48]} 21. Nh4 {[%clk 0:01:11]}  Qxh4 {[%clk 0:01:26]} 22. Qxh4 {[%clk 0:00:54]}  Rxg2+ {[%clk 0:01:24]} 23. Kh1 {[%clk 0:00:55]}  Rxf2+ {[%clk 0:01:25]} 24. Kg1 {[%clk 0:00:53]}  Rg2+ {[%clk 0:01:24]} 25. Kh1 {[%clk 0:00:53]}  Rg4+ {[%clk 0:01:21]} 26. Rf3 {[%clk 0:00:51]}  Bxf3# {[%clk 0:01:21]} 0-1


[Site "https://www.chess.com"]

[Event "Titled Tuesday Blitz February 15 Early 2022"]
[White "Dilmukhametov, Artur"]
[Black "Vargas Pereda, Jesus Manue"]
[WhiteFideId "24179922"]
[BlackFideId "5115710"]
[WhiteElo "2266"]
[BlackElo "1761"]
[Result "1/2-1/2"]
[Round "02"]
[TimeControl "180+1"]
[Date "2022.02.15"]
[WhiteClock "0:01:42"]
[BlackClock "0:01:22"]

1. d4 {[%clk 0:03:00]}  Nf6 {[%clk 0:02:58]} 2. c4 {[%clk 0:02:58]}  e5 {[%clk 0:02:58]} 3. dxe5 {[%clk 0:02:57]}  Ng4 {[%clk 0:02:57]} 4. Nf3 {[%clk 0:02:55]}  Bc5 {[%clk 0:02:55]} 5. e3 {[%clk 0:02:48]}  Nc6 {[%clk 0:02:55]} 6. Nc3 {[%clk 0:02:47]}  Qe7 {[%clk 0:02:55]} 7. b3 {[%clk 0:02:39]}  Ngxe5 {[%clk 0:02:54]} 8. Nxe5 {[%clk 0:02:37]}  Qxe5 {[%clk 0:02:40]} 9. Bb2 {[%clk 0:02:37]}  Bb4 {[%clk 0:02:40]} 10. Qc2 {[%clk 0:02:32]}  O-O {[%clk 0:02:31]} 11. Be2 {[%clk 0:02:32]}  d6 {[%clk 0:02:14]} 12. O-O {[%clk 0:02:30]}  Qg5 {[%clk 0:02:15]} 13. Ne4 {[%clk 0:02:18]}  Qg6 {[%clk 0:02:06]} 14. Bd3 {[%clk 0:02:10]}  Bf5 {[%clk 0:02:05]} 15. Rad1 {[%clk 0:02:09]}  Rae8 {[%clk 0:01:54]} 16. Ng3 {[%clk 0:02:08]}  Bxd3 {[%clk 0:01:53]} 17. Qxd3 {[%clk 0:02:06]}  Qxd3 {[%clk 0:01:53]} 18. Rxd3 {[%clk 0:02:05]}  a5 {[%clk 0:01:52]} 19. Rfd1 {[%clk 0:02:02]}  Ne5 {[%clk 0:01:50]} 20. Bxe5 {[%clk 0:01:57]}  Rxe5 {[%clk 0:01:49]} 21. h3 {[%clk 0:01:50]}  Rfe8 {[%clk 0:01:40]} 22. Rd5 {[%clk 0:01:48]}  Bc5 {[%clk 0:01:39]} 23. Rxe5 {[%clk 0:01:47]}  Rxe5 {[%clk 0:01:39]} 24. Rd5 {[%clk 0:01:45]}  f6 {[%clk 0:01:36]} 25. Kf1 {[%clk 0:01:44]}  Kf7 {[%clk 0:01:36]} 26. Ke2 {[%clk 0:01:44]}  c6 {[%clk 0:01:36]} 27. Rxe5 {[%clk 0:01:44]}  dxe5 {[%clk 0:01:36]} 28. f4 {[%clk 0:01:43]}  Ke6 {[%clk 0:01:33]} 29. f5+ {[%clk 0:01:42]}  Kf7 {[%clk 0:01:29]} 30. e4 {[%clk 0:01:42]}  Ke7 {[%clk 0:01:26]} 31. Nf1 {[%clk 0:01:42]}  Kd6 {[%clk 0:01:22]} 1/2-1/2


[Site "https://www.chess.com"]

[Event "Titled Tuesday Blitz February 15 Early 2022"]
[White "Djokic, Mihailo"]
[Black "Nguyen, Ngoc Truong Son"]
[WhiteFideId "976440"]
[BlackFideId "12401110"]
[WhiteElo "2008"]
[BlackElo "2596"]
[Result "1-0"]
[Round "02"]
[TimeControl "180+1"]
[Date "2022.02.15"]
[WhiteClock "0:00:04"]
[BlackClock "0:00:07"]

1. e4 {[%clk 0:03:00]}  c5 {[%clk 0:02:59]} 2. Nf3 {[%clk 0:02:48]}  d6 {[%clk 0:02:58]} 3. d4 {[%clk 0:02:49]}  cxd4 {[%clk 0:02:59]} 4. Nxd4 {[%clk 0:02:50]}  Nf6 {[%clk 0:02:59]} 5. Nc3 {[%clk 0:02:51]}  Nc6 {[%clk 0:02:59]} 6. Bg5 {[%clk 0:02:51]}  Bd7 {[%clk 0:02:57]} 7. Qd2 {[%clk 0:02:51]}  h6 {[%clk 0:02:54]} 8. Bxf6 {[%clk 0:02:51]}  gxf6 {[%clk 0:02:55]} 9. O-O-O {[%clk 0:02:51]}  h5 {[%clk 0:02:51]} 10. Kb1 {[%clk 0:02:50]}  a6 {[%clk 0:02:47]} 11. Bc4 {[%clk 0:02:46]}  e6 {[%clk 0:02:37]} 12. Rhe1 {[%clk 0:02:43]}  Be7 {[%clk 0:02:28]} 13. f4 {[%clk 0:02:36]}  b5 {[%clk 0:02:23]} 14. Bb3 {[%clk 0:02:20]}  Qb6 {[%clk 0:02:15]} 15. Nf5 {[%clk 0:02:06]}  exf5 {[%clk 0:01:39]} 16. Nd5 {[%clk 0:02:05]}  Qd8 {[%clk 0:01:34]} 17. exf5 {[%clk 0:02:05]}  Bxf5 {[%clk 0:01:22]} 18. Nxf6+ {[%clk 0:01:56]}  Kf8 {[%clk 0:01:20]} 19. Qd5 {[%clk 0:01:56]}  Bg6 {[%clk 0:01:17]} 20. Qxc6 {[%clk 0:01:53]}  Rc8 {[%clk 0:01:07]} 21. Qxa6 {[%clk 0:01:48]}  Bxf6 {[%clk 0:01:05]} 22. Rxd6 {[%clk 0:01:47]}  Qc7 {[%clk 0:01:04]} 23. Rxf6 {[%clk 0:01:22]}  Bxc2+ {[%clk 0:01:03]} 24. Ka1 {[%clk 0:01:22]}  Bxb3 {[%clk 0:01:04]} 25. axb3 {[%clk 0:01:19]}  Kg7 {[%clk 0:01:04]} 26. Qd6 {[%clk 0:00:53]}  Rhe8 {[%clk 0:00:36]} 27. Rg6+ {[%clk 0:00:13]}  fxg6 {[%clk 0:00:37]} 28. Qxc7+ {[%clk 0:00:12]}  Rxc7 {[%clk 0:00:38]} 29. Rxe8 {[%clk 0:00:13]}  Rc2 {[%clk 0:00:38]} 30. Re5 {[%clk 0:00:05]}  Rxg2 {[%clk 0:00:38]} 31. Rxb5 {[%clk 0:00:05]}  Rxh2 {[%clk 0:00:39]} 32. Rb7+ {[%clk 0:00:05]}  Kf6 {[%clk 0:00:37]} 33. b4 {[%clk 0:00:05]}  h4 {[%clk 0:00:35]} 34. b5 {[%clk 0:00:05]}  Rf2 {[%clk 0:00:34]} 35. b6 {[%clk 0:00:04]}  Rxf4 {[%clk 0:00:33]} 36. Rh7 {[%clk 0:00:04]}  Rb4 {[%clk 0:00:32]} 37. b7 {[%clk 0:00:02]}  g5 {[%clk 0:00:31]} 38. Ka2 {[%clk 0:00:03]}  Kg6 {[%clk 0:00:30]} 39. Ka3 {[%clk 0:00:02]}  Rb6 {[%clk 0:00:20]} 40. Rc7 {[%clk 0:00:02]}  Kf5 {[%clk 0:00:19]} 41. Rc5+ {[%clk 0:00:02]}  Kf4 {[%clk 0:00:08]} 42. Rc4+ {[%clk 0:00:02]}  Kf3 {[%clk 0:00:07]} 43. Rb4 {[%clk 0:00:02]}  Rxb7 {[%clk 0:00:08]} 44. Rxb7 {[%clk 0:00:03]}  h3 {[%clk 0:00:08]} 45. Rf7+ {[%clk 0:00:03]}  Kg3 {[%clk 0:00:06]} 46. b4 {[%clk 0:00:01]}  h2 {[%clk 0:00:05]} 47. Rh7 {[%clk 0:00:02]}  g4 {[%clk 0:00:05]} 48. b5 {[%clk 0:00:02]}  Kg2 {[%clk 0:00:06]} 49. b6 {[%clk 0:00:02]}  g3 {[%clk 0:00:07]} 50. b7 {[%clk 0:00:03]}  h1=Q {[%clk 0:00:05]} 51. Rxh1 {[%clk 0:00:04]}  Kxh1 {[%clk 0:00:06]} 52. b8=Q {[%clk 0:00:04]}  g2 {[%clk 0:00:07]} 53. Qh8+ {[%clk 0:00:04]} 1-0


[Site "https://www.chess.com"]

[Event "Titled Tuesday Blitz February 15 Early 2022"]
[White "Domingo Nunez, Alejandro"]
[Black "Pichot, Alan"]
[WhiteFideId "22245561"]
[BlackFideId "110973"]
[WhiteElo "2215"]
[BlackElo "2543"]
[Result "0-1"]
[Round "02"]
[TimeControl "180+1"]
[Date "2022.02.15"]
[WhiteClock "0:00:12"]
[BlackClock "0:00:12"]

1. c4 {[%clk 0:03:00]}  e5 {[%clk 0:02:57]} 2. Nc3 {[%clk 0:03:00]}  Nf6 {[%clk 0:02:58]} 3. g3 {[%clk 0:03:01]}  Bb4 {[%clk 0:02:57]} 4. Bg2 {[%clk 0:03:01]}  Bxc3 {[%clk 0:02:54]} 5. bxc3 {[%clk 0:03:00]}  d6 {[%clk 0:02:54]} 6. d3 {[%clk 0:02:58]}  O-O {[%clk 0:02:53]} 7. Rb1 {[%clk 0:02:58]}  c6 {[%clk 0:02:43]} 8. Ba3 {[%clk 0:02:58]}  Re8 {[%clk 0:02:42]} 9. e4 {[%clk 0:02:50]}  d5 {[%clk 0:02:38]} 10. cxd5 {[%clk 0:02:43]}  cxd5 {[%clk 0:02:39]} 11. exd5 {[%clk 0:02:44]}  e4 {[%clk 0:02:31]} 12. Ne2 {[%clk 0:02:44]}  Bg4 {[%clk 0:02:20]} 13. Rb2 {[%clk 0:02:39]}  Qxd5 {[%clk 0:02:04]} 14. O-O {[%clk 0:01:55]}  Bf3 {[%clk 0:01:37]} 15. Bxf3 {[%clk 0:01:40]}  exf3 {[%clk 0:01:37]} 16. Nf4 {[%clk 0:01:41]}  Qc6 {[%clk 0:01:37]} 17. d4 {[%clk 0:01:40]}  Qxc3 {[%clk 0:01:07]} 18. Rb3 {[%clk 0:01:39]}  Qc4 {[%clk 0:01:07]} 19. Qxf3 {[%clk 0:01:36]}  Nc6 {[%clk 0:01:07]} 20. Rc1 {[%clk 0:01:14]}  Qa6 {[%clk 0:00:57]} 21. Bb2 {[%clk 0:01:08]}  Rad8 {[%clk 0:00:49]} 22. d5 {[%clk 0:01:01]}  Ne5 {[%clk 0:00:49]} 23. Bxe5 {[%clk 0:00:51]}  Rxe5 {[%clk 0:00:50]} 24. Nd3 {[%clk 0:00:42]}  Re7 {[%clk 0:00:40]} 25. d6 {[%clk 0:00:37]}  Qxd6 {[%clk 0:00:39]} 26. Nc5 {[%clk 0:00:36]}  Rc8 {[%clk 0:00:30]} 27. Rd3 {[%clk 0:00:19]}  Qb6 {[%clk 0:00:24]} 28. Rb3 {[%clk 0:00:18]}  Qc6 {[%clk 0:00:22]} 29. Qf5 {[%clk 0:00:14]}  g6 {[%clk 0:00:18]} 30. Qb1 {[%clk 0:00:13]}  Rec7 {[%clk 0:00:13]} 31. Nd3 {[%clk 0:00:12]}  Qxc1+ {[%clk 0:00:12]} 0-1


[Site "https://www.chess.com"]

[Event "Titled Tuesday Blitz February 15 Early 2022"]
[White "Dreev, Aleksey"]
[Black "Viani Antonio Dcunha"]
[WhiteFideId "4100107"]
[BlackFideId "5027330"]
[WhiteElo "2636"]
[BlackElo "2366"]
[Result "0-1"]
[Round "02"]
[TimeControl "180+1"]
[Date "2022.02.15"]
[WhiteClock "0:00:09"]
[BlackClock "0:00:18"]

1. d4 {[%clk 0:02:56]}  Nf6 {[%clk 0:02:58]} 2. Nf3 {[%clk 0:02:56]}  g6 {[%clk 0:02:58]} 3. Bf4 {[%clk 0:02:56]}  Bg7 {[%clk 0:02:58]} 4. e3 {[%clk 0:02:57]}  O-O {[%clk 0:02:58]} 5. Be2 {[%clk 0:02:57]}  d6 {[%clk 0:02:58]} 6. O-O {[%clk 0:02:58]}  Nbd7 {[%clk 0:02:56]} 7. h3 {[%clk 0:02:58]}  b6 {[%clk 0:02:56]} 8. c4 {[%clk 0:02:58]}  Bb7 {[%clk 0:02:56]} 9. Nc3 {[%clk 0:02:58]}  Ne4 {[%clk 0:02:56]} 10. Nxe4 {[%clk 0:02:50]}  Bxe4 {[%clk 0:02:57]} 11. Bh2 {[%clk 0:02:46]}  e5 {[%clk 0:02:52]} 12. d5 {[%clk 0:02:44]}  a5 {[%clk 0:02:48]} 13. Nd2 {[%clk 0:02:42]}  Nc5 {[%clk 0:02:46]} 14. Nxe4 {[%clk 0:02:32]}  Nxe4 {[%clk 0:02:47]} 15. Rc1 {[%clk 0:02:27]}  f5 {[%clk 0:02:41]} 16. b3 {[%clk 0:02:24]}  Qh4 {[%clk 0:02:30]} 17. Qc2 {[%clk 0:02:20]}  Ng5 {[%clk 0:02:20]} 18. Rfe1 {[%clk 0:01:59]}  f4 {[%clk 0:02:11]} 19. exf4 {[%clk 0:01:58]}  exf4 {[%clk 0:02:12]} 20. Bg4 {[%clk 0:01:57]}  h5 {[%clk 0:02:09]} 21. Be6+ {[%clk 0:01:56]}  Kh7 {[%clk 0:02:06]} 22. Qd3 {[%clk 0:01:44]}  f3 {[%clk 0:01:40]} 23. Bg3 {[%clk 0:01:28]}  Qd4 {[%clk 0:01:34]} 24. Qxd4 {[%clk 0:01:24]}  Bxd4 {[%clk 0:01:35]} 25. Bh4 {[%clk 0:01:08]}  Bf6 {[%clk 0:01:26]} 26. g3 {[%clk 0:00:31]}  Nxh3+ {[%clk 0:01:11]} 27. Bxh3 {[%clk 0:00:29]}  g5 {[%clk 0:01:11]} 28. Bxg5 {[%clk 0:00:24]}  Bxg5 {[%clk 0:01:12]} 29. Rcd1 {[%clk 0:00:25]}  a4 {[%clk 0:01:05]} 30. b4 {[%clk 0:00:24]}  a3 {[%clk 0:01:04]} 31. Rd3 {[%clk 0:00:23]}  Ra4 {[%clk 0:01:00]} 32. Rb1 {[%clk 0:00:23]}  Kg6 {[%clk 0:00:52]} 33. Rbb3 {[%clk 0:00:22]}  h4 {[%clk 0:00:46]} 34. Bd7 {[%clk 0:00:21]}  Raa8 {[%clk 0:00:44]} 35. Rxf3 {[%clk 0:00:21]}  Rxf3 {[%clk 0:00:43]} 36. Rxf3 {[%clk 0:00:22]}  hxg3 {[%clk 0:00:43]} 37. Rxg3 {[%clk 0:00:20]}  Kf6 {[%clk 0:00:39]} 38. Rf3+ {[%clk 0:00:20]}  Ke7 {[%clk 0:00:39]} 39. Be6 {[%clk 0:00:20]}  Bf6 {[%clk 0:00:38]} 40. Kf1 {[%clk 0:00:19]}  Ra4 {[%clk 0:00:29]} 41. Rb3 {[%clk 0:00:19]}  Bb2 {[%clk 0:00:28]} 42. Ke2 {[%clk 0:00:19]}  Ra8 {[%clk 0:00:28]} 43. Rf3 {[%clk 0:00:17]}  Rf8 {[%clk 0:00:28]} 44. Rh3 {[%clk 0:00:14]}  Rh8 {[%clk 0:00:27]} 45. Rg3 {[%clk 0:00:14]}  Rh4 {[%clk 0:00:27]} 46. Bg4 {[%clk 0:00:12]}  Rh1 {[%clk 0:00:23]} 47. Re3+ {[%clk 0:00:10]}  Kf7 {[%clk 0:00:20]} 48. Be6+ {[%clk 0:00:10]}  Kf8 {[%clk 0:00:18]} 49. Rf3+ {[%clk 0:00:10]}  Ke8 {[%clk 0:00:18]} 50. Rf7 {[%clk 0:00:10]}  Ra1 {[%clk 0:00:18]} 51. Rxc7 {[%clk 0:00:09]}  Rxa2 {[%clk 0:00:19]} 52. c5 {[%clk 0:00:08]}  bxc5 {[%clk 0:00:18]} 53. bxc5 {[%clk 0:00:08]}  Bd4+ {[%clk 0:00:18]} 54. Kd3 {[%clk 0:00:08]}  Bxc5 {[%clk 0:00:19]} 55. Ra7 {[%clk 0:00:09]}  Bxa7 {[%clk 0:00:18]} 0-1


[Site "https://www.chess.com"]

[Event "Titled Tuesday Blitz February 15 Early 2022"]
[White "Dushyant Sharma"]
[Black "Khoroshev, Nikita"]
[WhiteFideId "25065130"]
[BlackFideId "14200287"]
[WhiteElo "2012"]
[BlackElo "2354"]
[Result "1/2-1/2"]
[Round "02"]
[TimeControl "180+1"]
[Date "2022.02.15"]
[WhiteClock "0:00:05"]
[BlackClock "0:00:13"]

1. e4 {[%clk 0:03:00]}  e5 {[%clk 0:02:59]} 2. Nf3 {[%clk 0:03:00]}  Nc6 {[%clk 0:03:00]} 3. Nc3 {[%clk 0:03:00]}  Nf6 {[%clk 0:03:00]} 4. Bb5 {[%clk 0:03:01]}  Bd6 {[%clk 0:02:59]} 5. d3 {[%clk 0:03:00]}  h6 {[%clk 0:02:59]} 6. h3 {[%clk 0:02:59]}  a6 {[%clk 0:02:59]} 7. Ba4 {[%clk 0:02:59]}  b5 {[%clk 0:02:59]} 8. Bb3 {[%clk 0:02:59]}  Na5 {[%clk 0:03:00]} 9. Be3 {[%clk 0:02:58]}  c5 {[%clk 0:02:58]} 10. Qd2 {[%clk 0:02:45]}  Nxb3 {[%clk 0:02:52]} 11. axb3 {[%clk 0:02:46]}  Bb7 {[%clk 0:02:52]} 12. g4 {[%clk 0:02:46]}  Qc7 {[%clk 0:02:47]} 13. Nh4 {[%clk 0:02:44]}  Bf8 {[%clk 0:02:46]} 14. f4 {[%clk 0:02:39]}  d5 {[%clk 0:02:44]} 15. fxe5 {[%clk 0:02:15]}  Qxe5 {[%clk 0:02:43]} 16. Bf4 {[%clk 0:01:59]}  Qe6 {[%clk 0:02:43]} 17. O-O-O {[%clk 0:01:57]}  O-O-O {[%clk 0:02:37]} 18. exd5 {[%clk 0:01:44]}  Nxd5 {[%clk 0:02:37]} 19. Rhe1 {[%clk 0:01:39]}  Qf6 {[%clk 0:02:28]} 20. Nxd5 {[%clk 0:01:36]}  Bxd5 {[%clk 0:02:26]} 21. g5 {[%clk 0:01:22]}  Qc6 {[%clk 0:02:24]} 22. gxh6 {[%clk 0:01:18]}  gxh6 {[%clk 0:02:25]} 23. Re3 {[%clk 0:01:11]}  Rg8 {[%clk 0:02:16]} 24. Rde1 {[%clk 0:01:05]}  Be6 {[%clk 0:02:06]} 25. Qa5 {[%clk 0:01:02]}  Bd6 {[%clk 0:02:01]} 26. Bxd6 {[%clk 0:00:54]}  Qxd6 {[%clk 0:02:02]} 27. Nf3 {[%clk 0:00:48]}  Kb7 {[%clk 0:02:00]} 28. Ne5 {[%clk 0:00:47]}  Rg2 {[%clk 0:01:55]} 29. Kb1 {[%clk 0:00:37]}  Qc7 {[%clk 0:01:44]} 30. Qc3 {[%clk 0:00:35]}  b4 {[%clk 0:01:41]} 31. Nxf7 {[%clk 0:00:28]}  bxc3 {[%clk 0:01:40]} 32. Nxd8+ {[%clk 0:00:28]}  Qxd8 {[%clk 0:01:40]} 33. Rxe6 {[%clk 0:00:28]}  Rg7 {[%clk 0:01:13]} 34. bxc3 {[%clk 0:00:27]}  Qh4 {[%clk 0:01:07]} 35. R1e3 {[%clk 0:00:25]}  Rd7 {[%clk 0:00:55]} 36. R6e4 {[%clk 0:00:22]}  Qf2 {[%clk 0:00:53]} 37. Kb2 {[%clk 0:00:20]}  h5 {[%clk 0:00:52]} 38. Re5 {[%clk 0:00:20]}  h4 {[%clk 0:00:52]} 39. Re2 {[%clk 0:00:18]}  Qg3 {[%clk 0:00:47]} 40. R2e3 {[%clk 0:00:18]}  Qg1 {[%clk 0:00:46]} 41. Re1 {[%clk 0:00:18]}  Qf2 {[%clk 0:00:40]} 42. R1e2 {[%clk 0:00:18]}  Qf8 {[%clk 0:00:36]} 43. R2e4 {[%clk 0:00:17]}  Rh7 {[%clk 0:00:30]} 44. Re8 {[%clk 0:00:17]}  Qf6 {[%clk 0:00:27]} 45. R8e6 {[%clk 0:00:15]}  Qf5 {[%clk 0:00:27]} 46. Re3 {[%clk 0:00:14]}  Rg7 {[%clk 0:00:25]} 47. R6e5 {[%clk 0:00:15]}  Qc8 {[%clk 0:00:25]} 48. R3e4 {[%clk 0:00:14]}  Qxh3 {[%clk 0:00:24]} 49. Rxc5 {[%clk 0:00:14]}  Qg3 {[%clk 0:00:23]} 50. Rb4+ {[%clk 0:00:13]}  Ka7 {[%clk 0:00:23]} 51. Rh5 {[%clk 0:00:14]}  h3 {[%clk 0:00:23]} 52. Rbh4 {[%clk 0:00:14]}  Qf2 {[%clk 0:00:20]} 53. Rxh3 {[%clk 0:00:14]}  Rg2 {[%clk 0:00:20]} 54. Rh7+ {[%clk 0:00:15]}  Kb6 {[%clk 0:00:20]} 55. R3h6+ {[%clk 0:00:15]}  Kc5 {[%clk 0:00:20]} 56. Rh5+ {[%clk 0:00:12]}  Kd6 {[%clk 0:00:20]} 57. R7h6+ {[%clk 0:00:11]}  Ke7 {[%clk 0:00:20]} 58. Rh7+ {[%clk 0:00:11]}  Kf6 {[%clk 0:00:20]} 59. R7h6+ {[%clk 0:00:11]}  Rg6 {[%clk 0:00:20]} 60. Rxg6+ {[%clk 0:00:12]}  Kxg6 {[%clk 0:00:21]} 61. Ra5 {[%clk 0:00:12]}  Qb6 {[%clk 0:00:20]} 62. b4 {[%clk 0:00:13]}  Kf6 {[%clk 0:00:21]} 63. d4 {[%clk 0:00:14]}  Ke6 {[%clk 0:00:21]} 64. Kb3 {[%clk 0:00:14]}  Kd6 {[%clk 0:00:21]} 65. Rh5 {[%clk 0:00:12]}  Qb7 {[%clk 0:00:21]} 66. Rh6+ {[%clk 0:00:12]}  Kd5 {[%clk 0:00:20]} 67. Rh5+ {[%clk 0:00:13]}  Ke4 {[%clk 0:00:21]} 68. Re5+ {[%clk 0:00:13]}  Kf4 {[%clk 0:00:21]} 69. c4 {[%clk 0:00:13]}  Qd7 {[%clk 0:00:20]} 70. c3 {[%clk 0:00:13]}  Qh7 {[%clk 0:00:20]} 71. c5 {[%clk 0:00:14]}  Qd3 {[%clk 0:00:19]} 72. c6 {[%clk 0:00:12]}  Qg6 {[%clk 0:00:17]} 73. Rc5 {[%clk 0:00:12]}  Qb1+ {[%clk 0:00:17]} 74. Kc4 {[%clk 0:00:11]}  Qa2+ {[%clk 0:00:17]} 75. Kd3 {[%clk 0:00:11]}  Qb1+ {[%clk 0:00:17]} 76. Kc4 {[%clk 0:00:10]}  Qa2+ {[%clk 0:00:17]} 77. Kd3 {[%clk 0:00:11]}  Kf3 {[%clk 0:00:17]} 78. Rf5+ {[%clk 0:00:09]}  Kg4 {[%clk 0:00:17]} 79. Re5 {[%clk 0:00:08]}  Qb1+ {[%clk 0:00:15]} 80. Kc4 {[%clk 0:00:09]}  Qa2+ {[%clk 0:00:13]} 81. Kc5 {[%clk 0:00:09]}  Qa4 {[%clk 0:00:14]} 82. Kd6 {[%clk 0:00:09]}  Qb3 {[%clk 0:00:13]} 83. c7 {[%clk 0:00:08]}  Qxc3 {[%clk 0:00:13]} 84. Rc5 {[%clk 0:00:05]}  Qxd4+ {[%clk 0:00:13]} 85. Kc6 {[%clk 0:00:05]}  Qe4+ {[%clk 0:00:12]} 86. Kd7 {[%clk 0:00:05]}  Qb7 {[%clk 0:00:11]} 87. Kd8 {[%clk 0:00:05]}  Qb6 {[%clk 0:00:12]} 88. Rc4+ {[%clk 0:00:04]}  Kf5 {[%clk 0:00:12]} 89. Rc5+ {[%clk 0:00:04]}  Ke6 {[%clk 0:00:11]} 90. Rc6+ {[%clk 0:00:03]}  Qxc6 {[%clk 0:00:11]} 91. c8=Q+ {[%clk 0:00:04]}  Kd6 {[%clk 0:00:11]} 92. Qxc6+ {[%clk 0:00:03]}  Kxc6 {[%clk 0:00:12]} 93. Kc8 {[%clk 0:00:04]}  Kb6 {[%clk 0:00:12]} 94. Kb8 {[%clk 0:00:04]}  Kb5 {[%clk 0:00:13]} 95. Kb7 {[%clk 0:00:05]}  Kxb4 {[%clk 0:00:13]} 96. Kxa6 {[%clk 0:00:05]} 1/2-1/2


[Site "https://www.chess.com"]

[Event "Titled Tuesday Blitz February 15 Early 2022"]
[White "Dvirnyy, Danyyil"]
[Black "Zheenbekov, Nurgazy"]
[WhiteFideId "817570"]
[BlackFideId "13800485"]
[WhiteElo "2546"]
[BlackElo "1959"]
[Result "1-0"]
[Round "02"]
[TimeControl "180+1"]
[Date "2022.02.15"]
[WhiteClock "0:01:30"]
[BlackClock "0:00:19"]

1. e4 {[%clk 0:02:59]}  e5 {[%clk 0:02:59]} 2. Nf3 {[%clk 0:02:55]}  Nc6 {[%clk 0:02:59]} 3. c3 {[%clk 0:02:54]}  d5 {[%clk 0:02:57]} 4. Qa4 {[%clk 0:02:51]}  dxe4 {[%clk 0:02:48]} 5. Nxe5 {[%clk 0:02:51]}  Bd7 {[%clk 0:02:48]} 6. Nxd7 {[%clk 0:02:50]}  Qxd7 {[%clk 0:02:48]} 7. Bb5 {[%clk 0:02:49]}  Nf6 {[%clk 0:02:46]} 8. O-O {[%clk 0:02:48]}  a6 {[%clk 0:02:36]} 9. d3 {[%clk 0:02:47]}  O-O-O {[%clk 0:02:31]} 10. Bxc6 {[%clk 0:02:30]}  Qxc6 {[%clk 0:02:31]} 11. Qxc6 {[%clk 0:02:30]}  bxc6 {[%clk 0:02:31]} 12. d4 {[%clk 0:02:26]}  c5 {[%clk 0:02:24]} 13. Be3 {[%clk 0:02:25]}  cxd4 {[%clk 0:02:17]} 14. Bxd4 {[%clk 0:02:25]}  c5 {[%clk 0:02:14]} 15. Bxf6 {[%clk 0:02:25]}  gxf6 {[%clk 0:02:14]} 16. Na3 {[%clk 0:02:26]}  f5 {[%clk 0:01:53]} 17. Rae1 {[%clk 0:02:24]}  Bh6 {[%clk 0:01:47]} 18. Nc4 {[%clk 0:02:24]}  Rhe8 {[%clk 0:01:38]} 19. f3 {[%clk 0:02:16]}  e3 {[%clk 0:01:37]} 20. f4 {[%clk 0:02:16]}  e2 {[%clk 0:01:35]} 21. Rf3 {[%clk 0:02:17]}  Kc7 {[%clk 0:01:33]} 22. g3 {[%clk 0:01:55]}  Re4 {[%clk 0:01:25]} 23. b3 {[%clk 0:01:50]}  Bg7 {[%clk 0:01:22]} 24. Kf2 {[%clk 0:01:50]}  Rd1 {[%clk 0:01:15]} 25. Rxe2 {[%clk 0:01:48]}  Rxe2+ {[%clk 0:01:15]} 26. Kxe2 {[%clk 0:01:49]}  Ra1 {[%clk 0:01:15]} 27. a4 {[%clk 0:01:42]}  Rb1 {[%clk 0:01:12]} 28. Nd2 {[%clk 0:01:41]}  Rh1 {[%clk 0:01:10]} 29. Nf1 {[%clk 0:01:36]}  c4 {[%clk 0:00:32]} 30. bxc4 {[%clk 0:01:35]}  Bf8 {[%clk 0:00:32]} 31. Re3 {[%clk 0:01:35]}  Bc5 {[%clk 0:00:29]} 32. Re5 {[%clk 0:01:36]}  Kc6 {[%clk 0:00:27]} 33. Rxf5 {[%clk 0:01:36]}  Rg1 {[%clk 0:00:28]} 34. Rf6+ {[%clk 0:01:29]}  Kd7 {[%clk 0:00:19]} 35. Rxf7+ {[%clk 0:01:29]}  Ke6 {[%clk 0:00:19]} 36. Rxh7 {[%clk 0:01:29]}  Rg2+ {[%clk 0:00:19]} 37. Kd3 {[%clk 0:01:30]} 1-0


[Site "https://www.chess.com"]